bitfinex/quotes_BTCUSD_20241021
["timestamp","ask_amount","ask_price","bid_price","bid_amount"]
[1729497068075,0.001658,68598.0,68597.0,0.17333779]
[1729497068290,0.006658,68598.0,68597.0,0.17333779]
[1729497068573,0.003658,68598.0,68597.0,0.30427645]
[1729497068812,0.003658,68598.0,68597.0,0.17333779]
[1729497069257,0.003658,68598.0,68597.0,0.30431388]
[1729497069511,0.001658,68598.0,68597.0,0.30431388]
[1729497069737,0.001658,68598.0,68597.0,0.30531388]
[1729497070185,0.001658,68598.0,68597.0,0.18896008]
[1729497070654,0.003658,68598.0,68597.0,0.27826008]
[1729497070896,0.002658,68598.0,68597.0,0.27917523]
[1729497071378,0.003658,68598.0,68597.0,0.28117523]
[1729497071611,0.003658,68598.0,68597.0,0.43013438]
[1729497071850,0.003658,68598.0,68597.0,0.42721923]
[1729497072572,0.21563652,68608.0,68603.0,0.168766]
[1729497072789,0.21563652,68608.0,68603.0,0.17332579]
[1729497073248,0.21563652,68608.0,68603.0,0.2823932]
[1729497073507,0.30863652,68615.0,68603.0,0.3616932]
[1729497073748,0.379552,68622.0,68603.0,0.61128494]
[1729497073749,0.21563652,68614.0,68603.0,0.61128494]
[1729497073974,0.002656,68604.0,68603.0,0.61328494]
[1729497074897,0.002656,68604.0,68603.0,0.61128494]
[1729497075145,0.002656,68604.0,68603.0,0.27332579]
[1729497075363,0.001656,68604.0,68603.0,0.27332579]
[1729497075839,0.002656,68604.0,68603.0,0.28232579]
[1729497076135,0.002656,68604.0,68603.0,0.15932579]
[1729497076359,0.001656,68604.0,68603.0,0.23755011]
[1729497076580,0.001656,68604.0,68603.0,0.15532481]
[1729497076811,0.002656,68604.0,68603.0,0.16432481]
[1729497077035,0.001656,68604.0,68603.0,0.15032481]
[1729497077287,0.001656,68604.0,68603.0,0.23974575]
[1729497077525,0.001656,68604.0,68603.0,0.24074575]
[1729497077759,0.001656,68604.0,68603.0,0.23974575]
[1729497077996,0.001656,68604.0,68603.0,0.24474575]
[1729497078246,0.001656,68604.0,68603.0,0.17432481]
[1729497078490,0.001656,68604.0,68603.0,0.25803979]
[1729497078722,0.001656,68604.0,68603.0,0.36707019]
[1729497078939,0.001656,68604.0,68603.0,0.36415521]
[1729497079415,0.001656,68604.0,68603.0,0.26012481]
[1729497079895,0.001656,68604.0,68603.0,0.25412481]
[1729497080140,0.001656,68604.0,68603.0,0.25512447]
[1729497080606,0.001656,68604.0,68603.0,0.28335466]
[1729497080844,0.001656,68604.0,68603.0,0.17532447]
[1729497081391,0.001656,68604.0,68603.0,0.28334759]
[1729497081628,0.001656,68604.0,68603.0,0.17723945]
[1729497081872,0.001656,68604.0,68603.0,0.29125812]
[1729497082603,0.001656,68604.0,68603.0,0.28834314]
[1729497083310,0.001656,68604.0,68603.0,0.28334314]
[1729497083549,0.001656,68604.0,68603.0,0.17532447]
[1729497083819,0.001656,68604.0,68603.0,0.28432307]
[1729497084272,0.001656,68604.0,68603.0,0.17532448]
[1729497084500,0.001656,68604.0,68603.0,0.26252188]
[1729497085441,0.001656,68604.0,68603.0,0.17532448]
[1729497085895,0.001656,68604.0,68603.0,0.28432307]
[1729497086349,0.001656,68604.0,68603.0,0.17532448]
[1729497087022,0.001656,68604.0,68603.0,0.26251195]
[1729497087253,0.001656,68604.0,68603.0,0.17532448]
[1729497087532,0.001656,68604.0,68603.0,0.170766]
[1729497087753,0.001656,68604.0,68603.0,0.17532457]
[1729497089317,0.001656,68604.0,68603.0,0.26250969]
[1729497089540,0.001656,68604.0,68603.0,0.17532457]
[1729497089762,0.001656,68604.0,68603.0,0.26250969]
[1729497089998,0.001656,68604.0,68603.0,0.17532457]
[1729497090215,0.001656,68604.0,68603.0,0.1905939]
[1729497090434,0.001656,68604.0,68603.0,0.27777902]
[1729497090657,0.001656,68604.0,68603.0,0.1905939]
[1729497091109,0.001656,68604.0,68603.0,0.27778061]
[1729497092683,0.001656,68604.0,68603.0,0.19059393]
[1729497092887,0.001656,68604.0,68603.0,0.0295586]
[1729497093092,0.31662,68604.0,68603.0,0.0065586]
[1729497093296,0.31662,68604.0,68603.0,0.0295586]
[1729497093727,0.31662,68604.0,68603.0,0.0275586]
[1729497093922,0.170856,68604.0,68603.0,0.0275586]
[1729497094357,0.001656,68604.0,68603.0,0.1743246]
[1729497094566,0.001656,68604.0,68603.0,0.23415746]
[1729497094777,0.001656,68604.0,68603.0,0.23872284]
[1729497094985,0.001656,68604.0,68603.0,0.23872283]
[1729497094986,0.002656,68604.0,68603.0,0.23872283]
[1729497095237,0.002656,68604.0,68603.0,0.23972283]
[1729497095442,0.002656,68604.0,68603.0,0.17432476]
[1729497095647,0.002656,68604.0,68603.0,0.17332476]
[1729497095972,0.002656,68604.0,68603.0,0.23972569]
[1729497096186,0.002656,68604.0,68603.0,0.17432476]
[1729497097048,0.002656,68604.0,68603.0,0.17932476]
[1729497098132,0.002656,68604.0,68603.0,0.17432476]
[1729497098564,0.002656,68604.0,68603.0,0.17532476]
[1729497100169,0.002656,68604.0,68603.0,0.24074234]
[1729497100819,0.002656,68604.0,68603.0,0.24074926]
[1729497101263,0.002656,68604.0,68603.0,0.17532476]
[1729497101473,0.002656,68604.0,68603.0,0.24075156]
[1729497101701,0.002656,68604.0,68603.0,0.17532476]
[1729497102182,0.002656,68604.0,68603.0,0.28272189]
[1729497102404,0.002656,68604.0,68603.0,0.4986838]
[1729497102676,0.002656,68604.0,68603.0,0.7395328]
[1729497102908,0.002656,68604.0,68603.0,0.6076838]
[1729497103134,0.002656,68604.0,68603.0,0.62326386]
[1729497103388,0.002656,68604.0,68603.0,0.62426386]
[1729497103606,0.002656,68604.0,68603.0,0.81747059]
[1729497103834,0.002656,68604.0,68603.0,0.66977239]
[1729497104092,0.001656,68604.0,68603.0,0.66877239]
[1729497104331,0.001656,68604.0,68603.0,0.67077239]
[1729497104802,0.001656,68604.0,68603.0,0.67677239]
[1729497104803,0.002656,68604.0,68603.0,0.67677239]
[1729497105262,0.002656,68604.0,68603.0,0.67877239]
[1729497105706,0.003656,68604.0,68603.0,0.68777239]
[1729497105943,0.003656,68604.0,68603.0,0.68777129]
[1729497107075,0.21563652,68616.0,68615.0,0.36294]
[1729497107309,0.21563652,68616.0,68615.0,0.5164567]
[1729497107572,0.001656,68627.0,68622.0,0.173725]
[1729497107819,0.001656,68627.0,68622.0,0.43621689]
[1729497108063,0.001656,68627.0,68626.0,0.150717]
[1729497108289,0.001656,68627.0,68626.0,0.3272337]
[1729497108551,0.001656,68627.0,68626.0,0.39261129]
[1729497109041,0.001656,68627.0,68626.0,0.3272337]
[1729497109297,0.001656,68627.0,68626.0,0.24365214]
[1729497109532,0.001656,68627.0,68626.0,0.17827455]
[1729497110258,0.001656,68627.0,68626.0,0.3272337]
[1729497110535,0.001656,68627.0,68626.0,0.39261129]
[1729497110779,0.001656,68627.0,68626.0,0.4144337]
[1729497111718,0.001656,68627.0,68626.0,0.5233654]
[1729497111955,0.001656,68627.0,68626.0,0.5144337]
[1729497112681,0.001656,68627.0,68626.0,0.5244337]
[1729497112928,0.001656,68627.0,68626.0,0.6260337]
[1729497113186,0.001656,68627.0,68626.0,0.62147615]
[1729497113422,0.001656,68627.0,68626.0,0.61947615]
[1729497113654,0.001656,68627.0,68626.0,0.61447615]
[1729497113926,0.001656,68627.0,68626.0,0.8073541]
[1729497114191,0.001656,68627.0,68626.0,0.8143541]
[1729497114522,0.001656,68627.0,68626.0,0.62103223]
[1729497115003,0.001656,68627.0,68626.0,0.62203223]
[1729497115233,0.001656,68627.0,68626.0,0.61603223]
[1729497115468,0.001656,68627.0,68626.0,0.62303223]
[1729497115707,0.001656,68627.0,68626.0,0.63103223]
[1729497115950,0.001656,68627.0,68626.0,0.62303223]
[1729497116207,0.001656,68627.0,68626.0,0.63103223]
[1729497116683,0.001656,68627.0,68626.0,0.62403223]
[1729497116908,0.001656,68627.0,68626.0,0.63103223]
[1729497117601,0.001656,68627.0,68626.0,0.62303223]
[1729497117839,0.001656,68627.0,68626.0,0.62647615]
[1729497118115,0.001656,68627.0,68626.0,0.623032]
[1729497118351,0.001656,68627.0,68626.0,0.616032]
[1729497118574,0.001656,68627.0,68626.0,0.631032]
[1729497118802,0.001656,68627.0,68626.0,0.623032]
[1729497119031,0.001656,68627.0,68626.0,0.631032]
[1729497119953,0.001656,68627.0,68626.0,0.624032]
[1729497120400,0.001656,68627.0,68626.0,0.632032]
[1729497120655,0.001656,68627.0,68626.0,0.624032]
[1729497120873,0.001656,68627.0,68626.0,0.616032]
[1729497121091,0.001656,68627.0,68626.0,0.62403192]
[1729497121768,0.001656,68627.0,68626.0,0.63203192]
[1729497122363,0.001656,68627.0,68626.0,0.62747615]
[1729497122823,0.001656,68627.0,68626.0,0.62547615]
[1729497123085,0.001656,68627.0,68626.0,0.75427134]
[1729497123314,0.001656,68627.0,68626.0,0.65267134]
[1729497123529,0.001656,68627.0,68626.0,0.66067134]
[1729497123754,0.001656,68627.0,68626.0,0.65267134]
[1729497123976,0.001656,68627.0,68626.0,0.64467134]
[1729497124211,0.001656,68627.0,68626.0,0.51987615]
[1729497124453,0.001656,68627.0,68626.0,0.52443211]
[1729497124685,0.001656,68627.0,68626.0,0.53043211]
[1729497124913,0.001656,68627.0,68626.0,0.51743211]
[1729497125135,0.001656,68627.0,68626.0,0.52243211]
[1729497125810,0.001656,68627.0,68626.0,0.65267151]
[1729497126027,0.001656,68627.0,68626.0,0.52243211]
[1729497126485,0.001656,68627.0,68626.0,0.53043211]
[1729497126708,0.001656,68627.0,68626.0,0.53498805]
[1729497127173,0.001656,68627.0,68626.0,0.45778805]
[1729497127616,0.001656,68627.0,68626.0,0.54457049]
[1729497128117,0.001656,68627.0,68626.0,0.54457092]
[1729497128789,0.001656,68627.0,68626.0,0.54456998]
[1729497131087,0.001656,68627.0,68626.0,0.54001361]
[1729497132471,0.001656,68627.0,68626.0,0.53201361]
[1729497132693,0.001656,68627.0,68626.0,0.54001361]
[1729497133148,0.001656,68627.0,68626.0,0.52401361]
[1729497133371,0.001656,68627.0,68626.0,0.53201361]
[1729497133640,0.001656,68627.0,68626.0,0.52401361]
[1729497134059,0.001656,68627.0,68626.0,0.54001361]
[1729497134267,0.001656,68627.0,68626.0,0.53201361]
[1729497134694,0.001656,68627.0,68626.0,0.54001361]
[1729497135119,0.001656,68627.0,68626.0,0.44523211]
[1729497135564,0.001656,68627.0,68626.0,0.45323211]
[1729497136624,0.001656,68627.0,68626.0,0.56170899]
[1729497138011,0.001656,68627.0,68626.0,0.55715303]
[1729497138701,0.001656,68627.0,68626.0,0.55723561]
[1729497139395,0.001656,68627.0,68626.0,0.44867615]
[1729497139588,0.001656,68627.0,68626.0,0.45323244]
[1729497140120,0.001656,68627.0,68626.0,0.45323245]
[1729497140584,0.001656,68627.0,68626.0,0.44867615]
[1729497145349,0.001656,68627.0,68626.0,0.57912531]
[1729497145800,0.001656,68627.0,68626.0,0.44867615]
[1729497149319,0.001656,68627.0,68626.0,0.64129249]
[1729497149571,0.093256,68627.0,68626.0,0.64129249]
[1729497149804,0.093256,68627.0,68626.0,0.44867615]
[1729497150284,0.093256,68627.0,68626.0,0.64129249]
[1729497152338,0.093256,68627.0,68626.0,0.44867615]
[1729497153911,0.093256,68627.0,68626.0,0.43867615]
[1729497154130,0.093256,68627.0,68626.0,0.284717]
[1729497163516,0.093256,68627.0,68626.0,0.276717]
[1729497163730,0.093256,68627.0,68626.0,0.284717]
[1729497164180,0.093256,68627.0,68626.0,0.268717]
[1729497164414,0.094256,68627.0,68626.0,0.276717]
[1729497164634,0.094256,68627.0,68626.0,0.283717]
[1729497168592,0.094256,68627.0,68626.0,0.288717]
[1729497171205,0.094256,68627.0,68626.0,0.283717]
[1729497178763,0.093256,68627.0,68626.0,0.275717]
[1729497179217,0.093256,68627.0,68626.0,0.281717]
[1729497179670,0.093256,68627.0,68626.0,0.274717]
[1729497179890,0.093256,68627.0,68626.0,0.279717]
[1729497180134,0.093256,68627.0,68626.0,0.179717]
[1729497180600,0.093256,68627.0,68626.0,0.31080909]
[1729497180818,0.093256,68627.0,68626.0,0.29980909]
[1729497181057,0.093256,68627.0,68626.0,0.30480909]
[1729497181281,0.093256,68627.0,68626.0,0.30980909]
[1729497181506,0.093256,68627.0,68626.0,0.168717]
[1729497181742,0.093256,68627.0,68626.0,0.29980909]
[1729497181966,0.093256,68627.0,68626.0,0.30380909]
[1729497182199,0.093256,68627.0,68626.0,0.172717]
[1729497182920,0.093256,68627.0,68626.0,0.30380909]
[1729497183147,0.093256,68627.0,68626.0,0.176717]
[1729497183616,0.093256,68627.0,68626.0,0.172717]
[1729497184535,0.093256,68627.0,68626.0,0.169717]
[1729497185028,0.093256,68627.0,68626.0,0.170717]
[1729497185292,0.093256,68627.0,68626.0,0.169717]
[1729497185517,0.093256,68627.0,68626.0,0.173717]
[1729497185960,0.093256,68627.0,68626.0,0.169717]
[1729497186179,0.093256,68627.0,68626.0,0.168717]
[1729497186404,0.093256,68627.0,68626.0,0.172717]
[1729497186880,0.093256,68627.0,68626.0,0.168717]
[1729497187771,0.093256,68627.0,68625.0,0.291438]
[1729497187772,0.093256,68627.0,68625.0,0.023]
[1729497187988,0.093256,68627.0,68625.0,0.1322046]
[1729497187989,0.1703,68626.0,68625.0,0.1322046]
[1729497188217,0.1703,68626.0,68625.0,0.11036692]
[1729497188971,0.1703,68626.0,68625.0,0.04367628]
[1729497189205,0.1703,68626.0,68618.0,0.04367628]
[1729497189206,0.291447,68623.0,68618.0,0.04367628]
[1729497189447,0.145738,68616.0,68615.0,0.04367628]
[1729497189664,0.0997,68615.0,68612.0,0.04367628]
[1729497189895,0.225652,68610.0,68608.0,0.04367628]
[1729497190121,0.0958,68609.0,68606.0,0.04367628]
[1729497190565,0.0958,68609.0,68604.0,0.000828]
[1729497191225,0.0958,68609.0,68604.0,0.023828]
[1729497191760,0.0998,68609.0,68604.0,0.023828]
[1729497192213,0.1018,68609.0,68604.0,0.023828]
[1729497192673,0.1038,68609.0,68604.0,0.023828]
[1729497192917,0.247554,68609.0,68604.0,0.023828]
[1729497193389,0.249554,68609.0,68604.0,0.023828]
[1729497193849,0.247554,68609.0,68604.0,0.023828]
[1729497194084,0.0992,68608.0,68604.0,0.023828]
[1729497195682,0.1072,68608.0,68604.0,0.023828]
[1729497196783,0.145761,68605.0,68604.0,0.000828]
[1729497197025,0.319861,68605.0,68604.0,0.000828]
[1729497197240,0.1741,68605.0,68604.0,0.000828]
[1729497198387,0.1791,68605.0,68604.0,0.000828]
[1729497199788,0.1841,68605.0,68604.0,0.000828]
[1729497200038,0.1841,68605.0,68604.0,0.023828]
[1729497200273,0.1088,68605.0,68604.0,0.169592]
[1729497200990,0.1088,68605.0,68604.0,0.023828]
[1729497201459,0.1088,68605.0,68604.0,0.169592]
[1729497201676,0.1088,68605.0,68604.0,0.023828]
[1729497202833,0.1038,68605.0,68604.0,0.023828]
[1729497203114,0.1068,68605.0,68604.0,0.023828]
[1729497203780,0.1018,68605.0,68604.0,0.023828]
[1729497204015,0.1048,68605.0,68604.0,0.023828]
[1729497204740,0.1018,68605.0,68604.0,0.023828]
[1729497204980,0.1038,68605.0,68604.0,0.023828]
[1729497205487,0.1088,68605.0,68604.0,0.023828]
[1729497206709,0.1088,68605.0,68604.0,0.000828]
[1729497206966,0.254561,68605.0,68604.0,0.000828]
[1729497207419,0.331261,68605.0,68604.0,0.000828]
[1729497208093,0.1855,68605.0,68604.0,0.000828]
[1729497208320,0.331261,68605.0,68604.0,0.000828]
[1729497210116,0.48022015,68605.0,68604.0,0.000828]
[1729497216824,0.48187615,68605.0,68604.0,0.000828]
[1729497223204,0.110456,68605.0,68604.0,0.000828]
[1729497224849,0.100456,68605.0,68604.0,0.000828]
[1729497225071,0.106456,68605.0,68604.0,0.001828]
[1729497225316,0.112456,68605.0,68604.0,0.001828]
[1729497227397,0.106456,68605.0,68604.0,0.000828]
[1729497227620,0.113456,68605.0,68604.0,0.001828]
[1729497228330,0.107456,68605.0,68604.0,0.001828]
[1729497228825,0.014656,68605.0,68604.0,0.002828]
[1729497229807,0.008656,68605.0,68604.0,0.001828]
[1729497230520,0.001656,68605.0,68604.0,0.000828]
[1729497230762,0.001656,68605.0,68604.0,0.001828]
[1729497230763,0.010656,68605.0,68604.0,0.001828]
[1729497231228,0.018656,68605.0,68604.0,0.002828]
[1729497231457,0.018656,68605.0,68604.0,0.025828]
[1729497232607,0.018656,68605.0,68604.0,0.0693809]
[1729497233055,0.018656,68605.0,68604.0,0.06947256]
[1729497233304,0.018656,68605.0,68604.0,0.025828]
[1729497233532,0.018656,68605.0,68604.0,0.09129485]
[1729497234707,0.018656,68605.0,68604.0,0.025828]
[1729497235411,0.018656,68605.0,68604.0,0.1132442]
[1729497236818,0.258217,68605.0,68604.0,0.002828]
[1729497237069,0.258217,68605.0,68604.0,0.0902442]
[1729497237780,0.258217,68605.0,68604.0,0.002828]
[1729497238448,0.112456,68605.0,68604.0,0.002828]
[1729497238667,0.112456,68605.0,68604.0,0.0902691]
[1729497239788,0.112456,68605.0,68604.0,0.002828]
[1729497240979,0.258217,68605.0,68604.0,0.09141365]
[1729497241191,0.112456,68605.0,68604.0,0.09141365]
[1729497241393,0.258217,68605.0,68604.0,0.09141365]
[1729497241609,0.258217,68605.0,68604.0,0.09141486]
[1729497243122,0.112456,68605.0,68604.0,0.09141486]
[1729497243722,0.112456,68605.0,68604.0,0.025828]
[1729497244377,0.112456,68605.0,68604.0,0.09141476]
[1729497246850,0.258217,68605.0,68604.0,0.09141476]
[1729497247054,0.258217,68605.0,68604.0,0.002828]
[1729497247656,0.258217,68605.0,68604.0,0.06841476]
[1729497247828,0.334817,68605.0,68604.0,0.002828]
[1729497248529,0.334817,68605.0,68604.0,0.06841476]
[1729497251755,0.334817,68605.0,68604.0,0.0684237]
[1729497256233,0.334817,68605.0,68604.0,0.06842533]
[1729497257019,0.334817,68605.0,68604.0,0.06842626]
[1729497258801,0.334817,68605.0,68604.0,0.04656136]
[1729497259248,0.334817,68605.0,68604.0,0.002828]
[1729497259493,0.48377615,68605.0,68604.0,0.002828]
[1729497259706,0.48577615,68605.0,68604.0,0.002828]
[1729497261601,0.48377615,68605.0,68604.0,0.002828]
[1729497263409,0.48377615,68605.0,68604.0,0.00290089]
[1729497263644,0.48577615,68605.0,68604.0,0.00290089]
[1729497264078,0.48377615,68605.0,68604.0,0.00290089]
[1729497265005,0.48577615,68605.0,68604.0,0.00290089]
[1729497265669,0.48377615,68605.0,68604.0,0.00290089]
[1729497266404,0.48577615,68605.0,68604.0,0.00290089]
[1729497270661,0.48377615,68605.0,68604.0,0.00290089]
[1729497270878,0.48377615,68605.0,68604.0,0.00190089]
[1729497270879,0.47777615,68605.0,68604.0,0.00190089]
[1729497271110,0.46877615,68605.0,68604.0,0.00090089]
[1729497271343,0.48277615,68605.0,68604.0,0.00190089]
[1729497271565,0.49677615,68605.0,68604.0,0.00290089]
[1729497271799,0.51177615,68605.0,68604.0,0.00290089]
[1729497272525,0.49777615,68605.0,68604.0,0.00190089]
[1729497272995,0.51177615,68605.0,68604.0,0.00290089]
[1729497273232,0.49777615,68605.0,68604.0,0.00190089]
[1729497273472,0.48377615,68605.0,68604.0,0.00090089]
[1729497273962,0.48377615,68605.0,68604.0,0.00290089]
[1729497273963,0.51177615,68605.0,68604.0,0.00290089]
[1729497274843,0.65540138,68605.0,68604.0,0.00290089]
[1729497275073,0.51177615,68605.0,68604.0,0.00290089]
[1729497275528,0.162772,68600.0,68599.0,0.000828]
[1729497275758,0.47673907,68600.0,68599.0,0.000828]
[1729497276451,0.47673907,68600.0,68587.0,0.01]
[1729497276452,0.242298,68588.0,68587.0,0.01]
[1729497276647,0.39125715,68588.0,68587.0,0.01]
[1729497276891,0.39325715,68588.0,68587.0,0.01]
[1729497277119,0.40825715,68588.0,68587.0,0.01]
[1729497277802,0.42225715,68588.0,68587.0,0.011]
[1729497278258,0.40825715,68588.0,68587.0,0.01]
[1729497279584,0.55849616,68588.0,68587.0,0.01]
[1729497279805,0.55649616,68588.0,68587.0,0.01]
[1729497280079,0.57049616,68588.0,68587.0,0.01]
[1729497280311,0.57249616,68588.0,68587.0,0.01]
[1729497280543,0.56749616,68588.0,68587.0,0.01]
[1729497280788,0.42925715,68588.0,68587.0,0.01]
[1729497281045,0.42425715,68588.0,68587.0,0.01]
[1729497284205,0.43071705,68588.0,68587.0,0.01]
[1729497285386,0.44071705,68588.0,68587.0,0.01]
[1729497285618,0.53520301,68588.0,68587.0,0.01]
[1729497286308,0.53520301,68588.0,68587.0,0.010828]
[1729497289102,0.44071705,68588.0,68587.0,0.010828]
[1729497289553,0.253802,68586.0,68583.0,0.00114259]
[1729497289775,0.40276115,68586.0,68583.0,0.00114259]
[1729497290876,0.41651914,68586.0,68583.0,0.00114259]
[1729497291096,0.45737599,68586.0,68583.0,0.00114259]
[1729497291319,0.47137599,68586.0,68583.0,0.00114259]
[1729497291592,0.470618,68586.0,68583.0,0.00114259]
[1729497291809,0.42976115,68586.0,68583.0,0.00114259]
[1729497292034,0.43051914,68586.0,68583.0,0.00114259]
[1729497292253,0.41651914,68586.0,68583.0,0.00114259]
[1729497292689,0.41576115,68586.0,68583.0,0.00114259]
[1729497293139,0.005,68579.0,68573.0,0.0778]
[1729497293358,0.145838,68569.0,68568.0,0.0778]
[1729497295384,0.145842,68567.0,68566.0,0.000824]
[1729497295659,0.06852798,68569.0,68566.0,0.018824]
[1729497295872,0.06852798,68569.0,68565.0,0.000825]
[1729497296325,0.145844,68566.0,68565.0,0.000825]
[1729497296555,0.145842,68568.0,68565.0,0.000825]
[1729497297244,0.145844,68566.0,68565.0,0.000825]
[1729497297483,0.145842,68568.0,68565.0,0.000825]
[1729497297715,0.145844,68566.0,68565.0,0.000825]
[1729497297942,0.008,68568.0,68565.0,0.000825]
[1729497298429,0.15384,68568.0,68565.0,0.000825]
[1729497298661,0.008,68568.0,68565.0,0.000825]
[1729497299130,0.437506,68571.0,68569.0,0.00024201]
[1729497299366,0.145836,68570.0,68569.0,0.00024201]
[1729497300770,0.145836,68570.0,68565.0,0.000825]
[1729497300771,0.291676,68569.0,68565.0,0.023825]
[1729497301006,0.145843,68567.0,68565.0,0.023825]
[1729497301239,0.157837,68570.0,68565.0,0.023825]
[1729497301484,0.145838,68569.0,68565.0,0.023825]
[1729497301940,0.0671899,68570.0,68565.0,0.023825]
[1729497302251,0.145837,68570.0,68565.0,0.023825]
[1729497302713,0.164837,68570.0,68565.0,0.023825]
[1729497303160,0.008,68570.0,68565.0,0.023825]
[1729497303630,0.015,68570.0,68565.0,0.023825]
[1729497304322,0.008,68570.0,68565.0,0.023825]
[1729497304553,0.015,68570.0,68569.0,0.00024201]
[1729497304795,0.015,68570.0,68569.0,0.10164201]
[1729497305947,0.145823,68576.0,68570.0,0.023]
[1729497306413,0.21563652,68577.0,68570.0,0.023]
[1729497306689,0.145826,68575.0,68570.0,0.023]
[1729497307165,0.291647,68576.0,68570.0,0.023]
[1729497307391,0.145825,68575.0,68570.0,0.023]
[1729497307615,0.03,68572.0,68570.0,0.023]
[1729497308493,0.03,68572.0,68571.0,0.00024201]
[1729497309381,0.03,68572.0,68571.0,0.17614201]
[1729497310149,0.043,68572.0,68571.0,0.32197601]
[1729497310341,0.057,68572.0,68571.0,0.32197601]
[1729497310603,0.044,68572.0,68571.0,0.19914201]
[1729497310828,0.044,68572.0,68571.0,0.34497601]
[1729497311292,0.044,68572.0,68571.0,0.19914201]
[1729497311517,0.045,68572.0,68571.0,0.19914201]
[1729497311739,0.015,68572.0,68571.0,0.34497601]
[1729497311936,0.016,68572.0,68571.0,0.34497601]
[1729497312077,0.016,68572.0,68571.0,0.38857373]
[1729497312929,0.016,68572.0,68571.0,0.55933175]
[1729497313131,0.016,68572.0,68571.0,0.49893516]
[1729497313586,0.001,68572.0,68571.0,0.49893516]
[1729497313994,0.001,68572.0,68571.0,0.49869315]
[1729497314201,0.001658,68576.0,68575.0,0.17624201]
[1729497314403,0.001658,68576.0,68575.0,0.34506701]
[1729497315366,0.001658,68576.0,68575.0,0.43232984]
[1729497315999,0.001658,68576.0,68575.0,0.43332984]
[1729497316233,0.001658,68576.0,68575.0,0.43532984]
[1729497316457,0.001658,68576.0,68575.0,0.34806701]
[1729497316695,0.001658,68576.0,68575.0,0.34606701]
[1729497317214,0.001658,68576.0,68575.0,0.34706701]
[1729497317443,0.001658,68576.0,68575.0,0.45614555]
[1729497317689,0.001658,68576.0,68575.0,0.34706701]
[1729497318811,0.001658,68576.0,68575.0,0.34606701]
[1729497319274,0.001658,68576.0,68575.0,0.34706701]
[1729497319503,0.001658,68576.0,68575.0,0.50102616]
[1729497319774,0.001658,68576.0,68575.0,0.50002616]
[1729497320009,0.001658,68576.0,68575.0,0.50102616]
[1729497320704,0.001658,68576.0,68575.0,0.34706701]
[1729497320927,0.001658,68576.0,68575.0,0.20024201]
[1729497321165,0.001658,68576.0,68575.0,0.34606701]
[1729497322153,0.001658,68576.0,68575.0,0.50002616]
[1729497322434,0.001658,68576.0,68575.0,0.61002616]
[1729497322651,0.001658,68576.0,68575.0,0.61102616]
[1729497322878,0.001658,68576.0,68575.0,0.61558592]
[1729497323118,0.001658,68576.0,68575.0,0.80897959]
[1729497323344,0.001658,68576.0,68575.0,0.61458592]
[1729497323582,0.002658,68576.0,68575.0,0.61658592]
[1729497323802,0.003658,68576.0,68575.0,0.61858592]
[1729497324045,0.003658,68576.0,68575.0,0.60858592]
[1729497324272,0.002658,68576.0,68575.0,0.60658592]
[1729497324511,0.002658,68576.0,68575.0,0.74746832]
[1729497324766,0.002658,68576.0,68575.0,0.61658592]
[1729497325261,0.001658,68576.0,68575.0,0.61358592]
[1729497325550,0.003658,68576.0,68575.0,0.62058592]
[1729497325785,0.002658,68576.0,68575.0,0.61758626]
[1729497326012,0.001658,68576.0,68575.0,0.61358626]
[1729497326270,0.002658,68576.0,68575.0,0.4705763]
[1729497326492,0.002658,68576.0,68575.0,0.36152711]
[1729497326748,0.002658,68576.0,68575.0,0.44876509]
[1729497326988,0.003658,68576.0,68575.0,0.45376509]
[1729497327693,0.003658,68576.0,68575.0,0.36652711]
[1729497328028,0.003658,68576.0,68575.0,0.45376168]
[1729497328250,0.002658,68576.0,68575.0,0.44876168]
[1729497328489,0.003658,68576.0,68575.0,0.45276168]
[1729497328736,0.003658,68576.0,68575.0,0.36552711]
[1729497328951,0.003658,68576.0,68575.0,0.44776214]
[1729497328952,0.002658,68576.0,68575.0,0.44776214]
[1729497329190,0.002658,68576.0,68575.0,0.35596701]
[1729497329666,0.003658,68576.0,68575.0,0.35896701]
[1729497329868,0.003658,68576.0,68575.0,0.44620158]
[1729497330107,0.003658,68576.0,68575.0,0.45076212]
[1729497330333,0.002658,68576.0,68575.0,0.36052755]
[1729497330801,0.003658,68576.0,68575.0,0.36352755]
[1729497331041,0.002658,68576.0,68575.0,0.44776212]
[1729497331263,0.001658,68576.0,68575.0,0.35652755]
[1729497331710,0.002658,68576.0,68575.0,0.44776212]
[1729497331935,0.002658,68576.0,68575.0,0.44320158]
[1729497332151,0.001658,68576.0,68575.0,0.43920158]
[1729497332383,0.001658,68576.0,68575.0,0.44420158]
[1729497332705,0.002658,68576.0,68575.0,0.44820158]
[1729497332800,0.003658,68576.0,68575.0,0.44620158]
[1729497333022,0.003658,68576.0,68575.0,0.35896701]
[1729497333263,0.002658,68576.0,68575.0,0.44318561]
[1729497333500,0.003658,68576.0,68575.0,0.44618561]
[1729497334436,0.002658,68576.0,68575.0,0.44718561]
[1729497334665,0.002658,68576.0,68575.0,0.44218561]
[1729497334904,0.003658,68576.0,68575.0,0.45118561]
[1729497335147,0.003658,68576.0,68575.0,0.62078664]
[1729497335374,0.002658,68576.0,68575.0,0.61678664]
[1729497335831,0.002658,68576.0,68575.0,0.61778664]
[1729497336062,0.003658,68576.0,68575.0,0.61622616]
[1729497336297,0.002658,68576.0,68575.0,0.60222616]
[1729497336549,0.002658,68576.0,68575.0,0.61222616]
[1729497337036,0.003658,68576.0,68575.0,0.61622616]
[1729497337286,0.003658,68576.0,68575.0,0.7252245]
[1729497337516,0.003658,68576.0,68575.0,0.72522529]
[1729497337752,0.003658,68576.0,68575.0,0.61622616]
[1729497338917,0.003658,68576.0,68575.0,0.61692552]
[1729497339363,0.003658,68576.0,68575.0,0.26327291]
[1729497339588,0.003658,68576.0,68575.0,0.24147292]
[1729497340053,0.002658,68576.0,68575.0,0.17206701]
[1729497340509,0.003658,68576.0,68575.0,0.17606701]